bitfinex-derivatives/quotes_SOLF0:USTF0_20250125
["timestamp","ask_amount","ask_price","bid_price","bid_amount"]
[1737831128830,0.02486922,258.57,258.55,3.8682]
[1737831129024,0.02486922,258.57,258.54,5.85131076]
[1737831129328,0.02486922,258.57,258.52,1.2798]
[1737831130123,0.02486922,258.57,258.52,5.1484]
[1737831131033,3.8687,258.53,258.51,0.02554325]
[1737831135730,5.85131076,258.52,258.51,0.02554325]
[1737831136035,0.02486922,258.57,258.51,5.87685401]
[1737831136327,0.02486922,258.57,258.56,5.85131076]
[1737831137736,0.02486922,258.57,258.55,3.8682]
[1737831142733,0.02486922,258.57,258.56,3.8681]
[1737831143537,3.8669,258.65,258.53,9.1336798]
[1737831143739,10.4352798,258.71,258.53,19.5388811]
[1737831144639,0.02870873,258.63,258.58,0.0255254]
[1737831144840,0.02870873,258.63,258.59,3.8676]
[1737831147939,0.02870873,258.63,258.6,3.8675]
[1737831148735,0.02870873,258.63,258.61,3.8673]
[1737831148942,0.02870873,258.63,258.58,0.0255254]
[1737831150241,0.02870873,258.63,258.6,3.8674]
[1737831156738,0.02870873,258.63,258.58,3.8932254]
[1737831158233,3.8672,258.62,258.58,3.8932254]
[1737831159840,0.02870873,258.63,258.6,3.8675]
[1737831160041,0.02870873,258.63,258.59,5.84602729]
[1737831161148,0.02870873,258.63,258.62,3.8672]
[1737831163140,5.84602729,258.73,258.66,3.8665]
[1737831163348,5.84602729,258.73,258.66,5.84602729]
[1737831163744,9.71172729,258.73,258.67,3.8663]
[1737831163949,5.84602729,258.73,258.67,3.8663]
[1737831164146,3.8658,258.72,258.66,5.84602729]
[1737831164351,3.8658,258.72,258.67,0.02598961]
[1737831165252,3.8659,258.71,258.67,0.02598961]
[1737831165450,5.87353894,258.73,258.67,0.02598961]
[1737831166845,3.866,258.7,258.67,0.02598961]
[1737831168460,3.8659,258.71,258.67,0.02598961]
[1737831168650,5.87353894,258.73,258.67,0.02598961]
[1737831169056,3.8658,258.72,258.67,0.02598961]
[1737831169254,5.87353894,258.73,258.67,0.02598961]
[1737831169658,3.866,258.71,258.67,0.02598961]
[1737831170360,5.87353894,258.73,258.67,0.02598961]
[1737831171459,3.866,258.7,258.67,0.02598961]
[1737831174655,5.84602729,258.7,258.67,0.02598961]
[1737831174959,9.71232729,258.68,258.67,0.02598961]
[1737831176455,3.8663,258.68,258.67,0.02598961]
[1737831182869,5.87353894,258.73,258.67,0.02598961]
[1737831183167,3.8658,258.72,258.67,5.8720169]
[1737831184270,3.8658,258.71,258.67,5.8720169]
[1737831184666,3.8658,258.71,258.67,0.02598961]
[1737831185769,3.8658,258.71,258.67,10.43119091]
[1737831186463,3.8658,258.71,258.67,3.89238961]
[1737831187269,3.8658,258.71,258.67,14.29759091]
[1737831187970,3.8658,258.71,258.67,3.89238961]
[1737831188161,9.73923894,258.73,258.67,3.89238961]
[1737831188361,5.87353894,258.73,258.67,3.89238961]
[1737831188764,5.87353894,258.73,258.68,10.4052013]
[1737831188965,5.84602729,258.7,258.68,10.4052013]
[1737831189370,3.8663,258.68,258.67,0.02598961]
[1737831193073,3.8661,258.7,258.67,0.02598961]
[1737831194172,5.87353894,258.73,258.67,10.43119091]
[1737831197171,3.8659,258.71,258.67,14.29759091]
[1737831197473,3.8659,258.71,258.68,10.4052013]
[1737831198176,3.8659,258.71,258.69,10.4052013]
[1737831198579,3.8657,258.72,258.7,10.4052013]
[1737831199477,3.8657,258.72,258.69,10.4052013]
[1737831200179,3.8657,258.72,258.7,10.4052013]
[1737831201275,3.8657,258.72,258.69,10.4052013]
[1737831201675,3.8657,258.72,258.7,10.4052013]
[1737831202075,5.84602729,258.71,258.7,10.4052013]
[1737831202278,5.84602729,258.71,258.69,8.35253208]
[1737831202480,5.84602729,258.7,258.69,8.35253208]
[1737831202975,3.8663,258.68,258.67,0.02598961]
[1737831214789,5.84602729,258.68,258.6,10.3737605]
[1737831215094,5.84602729,258.61,258.51,11.55181719]
[1737831215293,5.84602729,258.57,258.51,11.55181719]
[1737831215590,5.84602729,258.57,258.52,10.3715148]
[1737831215793,3.8682,258.56,258.52,10.3715148]
[1737831215989,3.8682,258.56,258.52,10.3991048]
[1737831216189,3.8682,258.56,258.53,10.3715148]
[1737831216589,3.8682,258.56,258.52,0.02759]
[1737831217290,3.8682,258.56,258.52,10.3991048]
[1737831217593,5.84602729,258.55,258.52,10.3991048]
[1737831217788,5.84602729,258.55,258.52,0.02759]
[1737831219791,3.8682,258.56,258.52,0.02759]
[1737831220797,0.0264391,258.57,258.53,5.84602729]
[1737831221489,0.0264391,258.57,258.54,3.8683]
[1737831225898,0.0264391,258.57,258.53,3.8685]
[1737831227593,0.0264391,258.57,258.54,3.8684]
[1737831228997,0.0264391,258.57,258.52,0.02759]
[1737831229298,0.0264391,258.57,258.53,3.8685]
[1737831234997,3.8943391,258.57,258.53,3.8685]
[1737831237803,0.0264391,258.57,258.53,3.8685]
[1737831238900,0.0264391,258.57,258.52,0.02759]
[1737831239102,0.0264391,258.57,258.54,5.84602729]
[1737831239703,0.0264391,258.57,258.55,3.8682]
[1737831240606,0.0264391,258.57,258.56,3.8681]
[1737831242609,5.84602729,258.68,258.6,3.8674]
[1737831242809,5.84602729,258.71,258.6,5.84602729]
[1737831243010,3.8658,258.72,258.66,3.8666]
[1737831243708,3.89174169,258.72,258.66,3.89531774]
[1737831244308,0.02594169,258.72,258.7,9.71202729]
[1737831244505,5.84602729,258.8,258.7,5.84602729]
[1737831244708,5.84602729,258.8,258.73,5.84602729]
[1737831245114,5.84602729,258.8,258.75,3.8651]
[1737831245912,5.87305813,258.8,258.75,3.89361984]
[1737831246211,5.87305813,258.8,258.75,0.02851984]
[1737831247008,0.02703084,258.8,258.75,0.02851984]
[1737831247413,5.84602729,258.78,258.75,0.02851984]
[1737831247713,9.71082729,258.78,258.75,0.02851984]
[1737831247914,5.84602729,258.78,258.75,0.02851984]
[1737831250615,3.89163084,258.8,258.75,0.02851984]
[1737831251112,0.02703084,258.8,258.75,0.02851984]
[1737831251809,0.02703084,258.8,258.76,5.84602729]
[1737831252814,0.02703084,258.8,258.77,3.8649]
[1737831253813,0.02703084,258.8,258.76,5.84602729]
[1737831255315,0.02703084,258.8,258.76,9.71112729]
[1737831255909,0.02703084,258.8,258.75,0.02851984]
[1737831255910,5.84602729,258.9,258.79,5.84602729]
[1737831256113,5.84602729,258.9,258.82,5.84602729]
[1737831256305,5.84602729,258.93,258.82,5.84602729]
[1737831256512,5.84602729,258.96,258.85,5.84602729]
[1737831256710,3.8625,258.94,258.88,3.8633]
[1737831257015,3.88688199,258.94,258.88,3.89029212]
[1737831257315,0.02438199,258.94,258.88,0.02699212]
[1737831257617,3.8627,258.92,258.88,0.02699212]
[1737831257819,5.84602729,258.93,258.88,0.02699212]
[1737831258409,0.02438199,258.94,258.89,3.8631]
[1737831258608,0.02438199,258.94,258.91,5.84602729]
[1737831258815,5.84602729,259.02,258.91,5.84602729]
[1737831259109,5.84602729,259.02,258.89,1.2541]
[1737831259110,5.84602729,259.02,258.94,5.84602729]
[1737831259313,5.84602729,259.02,258.95,3.8621]
[1737831259914,9.70732729,259.02,258.95,3.8621]
[1737831260115,9.70732729,259.02,258.96,0.02966748]
[1737831260116,0.02590359,259.01,258.96,0.02966748]
[1737831260316,5.84602729,258.99,258.96,0.02966748]
[1737831262219,3.8619,258.98,258.96,0.02966748]
[1737831262621,3.8627,258.93,258.86,3.8636]
[1737831262817,5.84602729,258.93,258.82,5.84602729]
[1737831263818,0.02973757,258.9,258.85,3.89067413]
[1737831265019,0.02973757,258.9,258.85,9.73670142]
[1737831265817,0.02973757,258.9,258.85,3.89067413]
[1737831266723,3.89273757,258.9,258.85,0.02697413]
[1737831267314,3.8632,258.89,258.85,0.02697413]
[1737831268623,0.02973757,258.9,258.85,3.89067413]
[1737831270021,0.02973757,258.9,258.88,3.8632]
[1737831270522,0.02973757,258.9,258.89,3.8632]
[1737831270823,0.02973757,258.9,258.85,0.02697413]
[1737831271728,0.02973757,258.9,258.87,3.8633]
[1737831271922,0.02973757,258.9,258.85,0.02697413]
[1737831273127,0.02973757,258.9,258.89,3.8632]
[1737831274033,0.02973757,258.9,258.85,3.89057413]
[1737831275535,3.8634,258.88,258.85,0.02697413]
[1737831276434,0.02973757,258.9,258.85,0.02697413]
[1737831276734,3.89283757,258.9,258.85,0.02697413]
[1737831278236,0.02973757,258.9,258.85,0.02697413]
[1737831279036,0.02973757,258.9,258.86,3.8636]
[1737831280032,0.02973757,258.9,258.85,0.02697413]
[1737831280233,0.02973757,258.9,258.85,9.1408964]
[1737831280537,0.02973757,258.9,258.89,3.8632]
[1737831284740,9.11392227,259.04,258.9,3.8629]
[1737831284929,11.59672227,259.04,258.85,9.11392227]
[1737831285132,11.59672227,259.04,258.86,0.7095667]
[1737831285735,3.8619,258.98,258.86,0.7095667]
[1737831285934,3.88669936,258.98,258.92,0.02619375]
[1737831286331,0.02479936,258.98,258.92,3.88889375]
[1737831287341,0.02479936,258.98,258.92,0.02619375]
[1737831287738,0.02479936,258.98,258.95,5.82826662]
[1737831288242,0.02479936,258.98,258.97,3.862]
[1737831290439,5.85306598,258.98,258.87,10.3715148]
[1737831290645,5.82826662,258.88,258.76,5.82826662]
[1737831291640,5.82826662,258.83,258.81,0.02644866]
[1737831291846,5.82826662,258.83,258.73,3.7878]
[1737831292046,5.82826662,258.75,258.73,2.4562]
[1737831292744,0.02779307,258.77,258.73,2.4562]
[1737831294748,0.02779307,258.77,258.71,0.02693375]
[1737831296148,9.15303612,258.77,258.71,0.02693375]
[1737831296448,3.8656,258.73,258.71,0.02693375]
[1737831297742,12.99084305,258.73,258.71,0.02693375]
[1737831297947,3.8666,258.67,258.63,3.97140528]
[1737831299043,0.02620788,258.68,258.63,3.97140528]
[1737831300650,0.02620788,258.68,258.62,0.02523439]
[1737831301752,3.8669,258.64,258.62,0.02523439]
[1737831305450,9.12524305,258.65,258.43,9.12524305]
[1737831305656,9.12524305,258.6,258.48,1.2956]
[1737831306158,9.12524305,258.56,258.48,1.2956]
[1737831306747,0.02939105,258.55,258.49,0.02616925]
[1737831308256,9.12524305,258.52,258.49,0.02616925]
[1737831309157,9.12524305,258.52,258.38,10.31532791]
[1737831309358,9.12524305,258.4,258.38,10.31532791]
[1737831309656,9.12524305,258.4,258.3,2.6201]
[1737831309850,9.12524305,258.4,258.33,3.8715]
[1737831310049,0.02777415,258.39,258.33,3.8715]
[1737831310250,0.02777415,258.39,258.34,0.02895389]
[1737831310960,0.02777415,258.39,258.36,3.871]
[1737831311564,0.02777415,258.39,258.37,3.8709]
[1737831312861,0.02777415,258.39,258.35,3.8712]
[1737831313063,0.02777415,258.39,258.34,0.02895389]
[1737831313358,0.02777415,258.39,258.37,3.8709]
[1737831315566,0.02777415,258.39,258.34,0.02895389]
[1737831315769,9.12524305,258.36,258.34,0.02895389]
[1737831317559,9.12524305,258.36,258.34,3.90035389]
[1737831318469,0.02777415,258.39,258.37,3.8709]
[1737831320460,0.02777415,258.39,258.34,0.02895389]
[1737831320769,9.12524305,258.36,258.34,0.02895389]
[1737831321569,12.99634305,258.36,258.34,0.02895389]
[1737831322268,9.12524305,258.36,258.29,3.872]
[1737831322459,3.8713,258.35,258.29,3.872]
[1737831323069,3.8713,258.35,258.24,2.4706]
[1737831323262,3.8713,258.35,258.3,3.872]
[1737831323464,0.02926679,258.32,258.3,3.872]
[1737831325263,0.02926679,258.32,258.31,3.8718]
[1737831325670,0.02926679,258.32,258.31,4.58304006]
[1737831326072,0.02926679,258.32,258.31,4.58303107]
[1737831326372,0.02926679,258.32,258.31,3.8718]
[1737831326573,0.02926679,258.32,258.27,0.029377]
[1737831326772,0.02926679,258.32,258.29,3.8721]
[1737831326974,0.02926679,258.32,258.27,0.029377]
[1737831327375,0.02926679,258.32,258.27,3.901677]
[1737831327974,0.02926679,258.32,258.29,3.8721]
[1737831328171,0.02926679,258.32,258.06,9.12524305]
[1737831328172,9.15450984,258.32,258.06,9.12524305]
[1737831328470,9.12524305,258.25,258.06,9.12524305]
[1737831328675,9.12524305,258.25,258.11,3.8748]
[1737831329276,0.02515077,258.21,258.15,0.02562799]
[1737831329672,3.89855077,258.21,258.15,0.02562799]
[1737831330475,0.02515077,258.21,258.15,0.02562799]
[1737831330776,0.02515077,258.21,258.15,3.89982799]
[1737831330971,0.02515077,258.21,258.16,0.71169005]
[1737831331475,0.02515077,258.21,258.15,3.89982799]
[1737831331676,0.02515077,258.21,258.16,0.71169005]
[1737831331977,0.02515077,258.21,258.15,0.02562799]
[1737831332677,3.8737,258.19,258.15,0.02562799]
[1737831332873,0.02515077,258.21,258.15,0.02562799]
[1737831333177,3.8736,258.19,258.15,0.02562799]
[1737831334177,0.02515077,258.21,258.15,0.02562799]
[1737831334476,3.8739,258.18,258.15,0.02562799]
[1737831334779,3.8736,258.2,258.15,0.02562799]
[1737831334979,0.02515077,258.21,258.15,0.02562799]
[1737831335377,3.8736,258.2,258.15,0.02562799]
[1737831336179,9.12524305,258.19,258.15,0.02562799]
[1737831336378,12.99894305,258.19,258.15,0.02562799]
[1737831340274,3.8738,258.18,258.15,0.02562799]
[1737831341677,9.12524305,258.19,258.15,0.02562799]
[1737831342485,3.8741,258.16,258.15,0.02562799]
[1737831342784,9.12524305,258.19,258.15,0.02562799]
[1737831342979,3.8739,258.18,258.15,0.02562799]
[1737831343185,9.12524305,258.19,258.15,0.02562799]
[1737831343986,3.874,258.17,258.15,0.02562799]
[1737831348586,9.12524305,258.19,258.15,0.02562799]
[1737831350788,12.99884305,258.19,258.15,0.02562799]
[1737831352592,3.89865077,258.21,258.15,3.89982799]
[1737831352791,0.02515077,258.21,258.15,3.89982799]
[1737831353092,3.8736,258.2,258.15,3.89982799]
[1737831353292,0.02515077,258.21,258.15,3.89982799]
[1737831353990,3.8736,258.19,258.15,3.89982799]
[1737831354893,3.8736,258.19,258.15,0.02562799]
[1737831356194,9.12524305,258.2,258.15,0.02562799]
[1737831356393,3.8738,258.18,258.15,0.02562799]
[1737831358597,9.12524305,258.2,258.15,0.02562799]
[1737831358799,12.99884305,258.2,258.15,0.02562799]
[1737831359695,0.02515077,258.21,258.15,0.02562799]
[1737831360393,9.12524305,258.29,258.15,0.02562799]
[1737831361395,0.02931131,258.25,258.15,0.02562799]
[1737831363300,0.02931131,258.25,258.23,3.873]
[1737831367804,0.02931131,258.25,258.21,0.02514295]
[1737831368005,0.02931131,258.25,258.24,3.8729]
[1737831369804,9.12524305,258.33,258.22,2.5308]
[1737831370796,0.02880264,258.3,258.22,2.5308]
[1737831371807,5.86231209,258.28,258.22,2.5308]
[1737831372707,5.86231209,258.28,258.24,3.8729]
[1737831373304,5.86231209,258.25,258.21,0.02514295]
[1737831373502,9.73521209,258.25,258.21,0.02514295]
[1737831373808,9.16331987,258.23,258.08,1.3206]
[1737831374009,3.8742,258.16,258.08,1.3206]
[1737831374600,9.16331987,258.27,258.08,1.3206]
[1737831374805,9.16331987,258.23,258.11,3.8747]
[1737831375010,0.0270525,258.2,258.15,0.02713424]
[1737831375908,3.9005525,258.2,258.15,0.02713424]
[1737831376100,0.0270525,258.2,258.15,0.02713424]
[1737831377510,0.0270525,258.2,258.18,3.8738]
[1737831377812,9.16331987,258.31,258.15,0.02713424]
[1737831378108,9.16331987,258.31,258.13,9.16331987]
[1737831378109,13.03521987,258.31,258.22,3.8732]
[1737831378410,9.16331987,258.31,258.22,3.8732]
[1737831378615,9.16331987,258.31,258.25,3.8726]
[1737831378812,9.16331987,258.35,258.17,9.16331987]
[1737831379110,0.02484044,258.31,258.25,0.02795772]
[1737831381313,3.8722,258.29,258.25,0.02795772]
[1737831382009,0.02484044,258.31,258.25,3.90065772]
[1737831382212,0.02484044,258.31,258.25,0.02795772]
[1737831383218,0.02484044,258.31,258.26,3.8725]
[1737831383619,0.02484044,258.31,258.27,3.8724]
[1737831383819,0.02484044,258.31,258.25,0.02795772]
[1737831384618,9.18816031,258.31,258.13,9.16331987]
[1737831384921,9.16331987,258.23,258.05,9.16331987]
[1737831385721,3.8735,258.21,258.12,3.8746]
[1737831385928,0.02693073,258.17,258.12,3.8746]
[1737831386323,0.02693073,258.17,258.11,0.02448374]
[1737831386621,0.02693073,258.17,258.15,3.8742]
[1737831386815,0.02693073,258.17,258.11,0.02448374]
[1737831387521,0.02693073,258.17,258.14,3.8744]
[1737831388928,0.02693073,258.17,258.11,0.02448374]
[1737831389424,0.02693073,258.17,258.15,3.8742]
[1737831393528,0.02693073,258.17,258.13,3.8744]
[1737831393725,0.02693073,258.17,258.11,0.02448374]
[1737831394525,0.02693073,258.17,258.15,3.8742]
[1737831394925,0.02693073,258.17,258.16,3.8741]
[1737831395925,0.02693073,258.17,258.11,0.02448374]
[1737831397225,3.90093073,258.17,258.11,0.02448374]
[1737831397628,0.02693073,258.17,258.11,0.02448374]
[1737831398423,3.8728,258.25,258.15,3.8742]
[1737831398627,9.16331987,258.27,258.12,1.3542]
[1737831398931,9.16331987,258.27,258.13,1.3308]
[1737831399431,3.8731,258.23,258.15,3.8742]
[1737831399626,0.02619323,258.23,258.17,0.02889821]
[1737831400026,3.8737,258.19,258.17,0.02889821]
[1737831407638,3.8738,258.18,258.17,0.02889821]
[1737831409746,9.74127119,258.18,258.17,0.02889821]
[1737831411543,5.86747119,258.18,258.06,1.3308]
[1737831411848,3.8749,258.11,258.07,3.8753]
[1737831412442,3.8749,258.11,258.06,1.3308]
[1737831412947,0.02717408,258.11,258.06,5.23438209]
[1737831414042,3.90197408,258.11,258.06,1.35888209]
[1737831414354,0.02717408,258.11,258.06,1.35888209]
[1737831414853,3.8751,258.09,258.06,1.35888209]
[1737831415053,0.02717408,258.11,258.06,1.35888209]
[1737831415753,9.74267119,258.09,258.06,1.35888209]
[1737831417153,0.02717408,258.11,258.06,1.35888209]
[1737831417850,5.89464527,258.11,258.06,1.35888209]
[1737831418955,5.89464527,258.11,258.06,5.23438209]
[1737831420254,5.89464527,258.11,258.06,1.35888209]
[1737831420454,3.8751,258.1,258.06,1.35888209]
[1737831421453,5.89464527,258.11,258.06,1.35888209]
[1737831421855,0.02717408,258.11,258.06,1.35888209]
[1737831423554,5.86747119,258.2,258.09,5.86747119]
[1737831423754,5.86747119,258.2,258.17,3.8739]
[1737831423954,5.86747119,258.2,258.12,5.86747119]
[1737831424254,5.86747119,258.2,258.13,1.2667]
[1737831424654,0.02793247,258.19,258.14,0.029075]
[1737831425050,0.02793247,258.19,258.18,3.8738]
[1737831425453,0.02793247,258.19,258.14,0.029075]
[1737831426958,0.02793247,258.19,258.17,3.8738]
[1737831428561,5.86747119,258.24,258.19,3.8736]
[1737831429758,5.89465705,258.24,258.19,3.8736]
[1737831430261,5.89465705,258.24,258.2,3.8734]
[1737831431661,5.89465705,258.24,258.19,0.02769408]
[1737831431860,5.89465705,258.24,258.22,3.8731]
[1737831432163,5.89465705,258.24,258.19,0.02769408]
[1737831432353,5.89465705,258.24,258.2,3.8734]
[1737831437961,5.89465705,258.24,258.19,0.02769408]
[1737831438161,9.76755705,258.24,258.19,0.02769408]
[1737831439365,5.89465705,258.24,258.19,3.90129408]
[1737831439867,5.89465705,258.24,258.19,0.02769408]
[1737831440968,5.89465705,258.24,258.2,3.8735]
[1737831443763,5.89465705,258.24,258.19,0.02769408]
[1737831443764,0.02718586,258.24,258.19,0.02769408]
[1737831444769,0.02718586,258.24,258.2,3.8734]
[1737831445468,3.8735,258.2,258.19,0.00076335]
[1737831445673,5.86747119,258.2,258.05,5.86747119]
[1737831445972,11.62,258.33,258.06,3.8755]
[1737831445973,5.86747119,258.14,258.06,3.8755]
[1737831446172,5.86747119,258.14,258.05,5.86747119]
[1737831446865,0.02918482,258.12,258.07,0.02951708]
[1737831448175,0.02918482,258.12,258.09,3.8751]
[1737831449571,0.02918482,258.12,258.1,3.875]
[1737831451776,0.02918482,258.12,258.07,1.37751708]
[1737831453075,0.02918482,258.12,258.09,3.8751]
[1737831453876,0.02918482,258.12,258.1,3.875]
[1737831455278,5.86747119,258.2,258.11,5.86747119]
[1737831455471,5.86747119,258.23,258.14,5.86747119]
[1737831455678,5.86747119,258.23,258.17,3.8739]
[1737831456479,5.89641002,258.23,258.17,3.89864637]
[1737831456672,5.89641002,258.23,258.17,0.02474637]
[1737831456875,5.89641002,258.23,258.18,3.8738]
[1737831457175,5.89641002,258.23,258.17,0.02474637]
[1737831457176,0.02893883,258.23,258.17,5.89221756]
[1737831457371,0.02893883,258.23,258.21,3.8733]
[1737831458380,5.86747119,258.29,258.23,3.873]
[1737831458680,5.86747119,258.29,258.2,5.86747119]
[1737831458876,3.8737,258.19,258.11,5.86747119]
[1737831459175,5.86747119,258.16,258.08,16.1827991]
[1737831459381,5.86747119,258.19,258.11,5.86747119]
[1737831459679,0.02954373,258.15,258.11,5.86747119]
[1737831460076,0.02954373,258.15,258.09,0.0245565]
[1737831463981,3.8746,258.13,258.09,0.0245565]
[1737831465884,3.8747,258.12,258.09,0.0245565]
[1737831466285,0.02954373,258.15,258.09,0.0245565]
[1737831468085,3.90384373,258.15,258.09,0.0245565]
[1737831468581,0.02954373,258.15,258.09,0.0245565]
[1737831476786,0.02954373,258.15,258.09,3.8996565]
[1737831476987,0.02954373,258.15,258.09,0.0245565]
[1737831478091,0.02954373,258.15,258.11,3.8748]
[1737831481694,0.02954373,258.15,258.11,9.74039595]
[1737831482889,0.02954373,258.15,258.14,5.86559595]
[1737831483097,5.86559595,258.25,258.14,5.86559595]
[1737831483799,3.8732,258.22,258.14,9.73979595]
[1737831484199,0.02907741,258.21,258.15,0.02783638]
[1737831484497,0.02907741,258.21,258.15,3.90203638]
[1737831485995,0.02907741,258.21,258.15,0.02783638]
[1737831488098,3.8736,258.2,258.15,0.02783638]
[1737831491701,0.02907741,258.21,258.15,0.02783638]
[1737831491901,3.8739,258.17,258.15,0.02783638]
[1737831494703,3.8738,258.18,258.15,0.02783638]
[1737831496903,3.8741,258.16,258.15,0.02783638]
[1737831497106,9.73969595,258.16,258.15,0.02783638]
[1737831497305,5.86559595,258.16,258.08,5.86559595]
[1737831498105,3.8746,258.13,258.08,5.86559595]
[1737831498507,0.02975294,258.13,258.08,5.89378096]
[1737831499406,0.02975294,258.13,258.08,0.02818501]
[1737831500306,5.89534889,258.13,258.08,0.02818501]
[1737831502207,9.77004889,258.13,258.08,0.02818501]
[1737831502907,0.02975294,258.13,258.1,3.875]
[1737831505309,0.02975294,258.13,258.08,5.89378096]
[1737831506108,0.02975294,258.13,258.12,3.8747]
[1737831514724,5.86559595,258.21,258.16,3.874]
[1737831514917,2.72,258.36,258.09,2.552]
[1737831514918,5.86559595,258.24,258.14,5.86559595]
[1737831515118,5.86559595,258.27,258.17,5.86559595]
[1737831515721,0.02791542,258.25,258.19,0.02497153]
[1737831516113,0.02791542,258.25,258.2,3.8733]
[1737831518113,5.86559595,258.22,258.19,0.02497153]
[1737831518314,5.86559595,258.2,258.19,0.02497153]
[1737831527429,3.8732,258.22,258.19,0.02497153]
[1737831528820,3.8734,258.21,258.19,0.02497153]
[1737831529231,3.8732,258.22,258.19,0.02497153]
[1737831533032,3.8734,258.21,258.19,0.02497153]
[1737831533332,5.86559595,258.23,258.19,0.02497153]
[1737831533928,3.8734,258.21,258.19,0.02497153]
[1737831534835,0.02791542,258.25,258.19,5.89056748]
[1737831535032,0.02791542,258.25,258.2,1.2272]
[1737831537131,0.02791542,258.25,258.22,5.86559595]
[1737831537327,5.86559595,258.35,258.22,5.86559595]
[1737831537531,5.86559595,258.35,258.25,5.86559595]
[1737831538335,0.02483994,258.33,258.27,0.0244336]
[1737831538942,0.02483994,258.33,258.28,5.86559595]
[1737831539238,0.02483994,258.33,258.31,3.8718]
[1737831543537,0.02483994,258.33,258.27,0.0244336]
[1737831544340,0.02483994,258.33,258.29,3.8721]
[1737831545844,0.02483994,258.33,258.29,5.86559595]
[1737831546435,0.02483994,258.33,258.32,9.73729595]
[1737831550042,0.02483994,258.33,258.29,3.8721]
[1737831556550,0.02483994,258.33,258.31,3.8718]
[1737831556752,0.02483994,258.33,258.29,5.86559595]
[1737831558148,0.02483994,258.33,258.31,3.8717]
[1737831558342,0.02483994,258.33,258.29,5.86559595]
[1737831558850,5.86559595,258.41,258.32,5.86559595]
[1737831559344,3.8701,258.43,258.34,3.8713]
[1737831559552,5.86559595,258.47,258.38,5.86559595]
[1737831559751,5.86559595,258.5,258.41,5.86559595]
[1737831560049,0.02707669,258.45,258.43,3.87]
[1737831560847,0.02707669,258.45,258.44,5.86559595]
[1737831561250,5.86559595,258.53,258.44,5.86559595]
[1737831561449,5.86559595,258.5,258.41,5.86559595]
[1737831561751,5.86559595,258.47,258.38,5.86559595]
[1737831561951,5.86559595,258.47,258.39,3.8706]
[1737831562451,0.02921114,258.46,258.4,0.02834887]
[1737831563147,0.02921114,258.46,258.41,9.73589595]
[1737831563753,0.02921114,258.46,258.43,3.87]
[1737831563951,0.02921114,258.46,258.44,5.86559595]
[1737831564350,5.86559595,258.56,258.48,3.8692]
[1737831564853,5.86559595,258.56,258.47,5.86559595]
[1737831565150,5.86559595,258.56,258.33,5.2573]
[1737831565151,5.86559595,258.5,258.33,5.2573]
[1737831565352,0.02854194,258.47,258.42,0.02939388]
[1737831566553,0.02854194,258.47,258.43,3.87]
[1737831566757,0.02854194,258.47,258.43,5.86559595]
[1737831567356,5.86559595,258.59,258.46,5.86559595]
[1737831567556,5.86559595,258.59,258.51,5.86559595]
[1737831568249,3.868,258.57,258.51,5.86559595]
[1737831568453,0.02969009,258.58,258.52,0.02717018]
[1737831568659,5.86559595,258.55,258.52,0.02717018]
[1737831568849,5.86559595,258.55,258.44,5.86559595]
[1737831569055,5.86559595,258.51,258.44,5.86559595]
[1737831570056,3.89502425,258.5,258.45,0.02907293]
[1737831572060,3.8692,258.49,258.45,0.02907293]
[1737831573961,0.02592425,258.5,258.45,0.02907293]
[1737831574461,3.89492425,258.5,258.45,0.02907293]
[1737831576362,0.02592425,258.5,258.45,0.02907293]
[1737831577165,3.89492425,258.5,258.45,0.02907293]
[1737831577857,0.02592425,258.5,258.45,0.02907293]
[1737831578264,0.02592425,258.5,258.45,3.89877293]
[1737831578860,0.02592425,258.5,258.45,0.02907293]
[1737831579063,0.02592425,258.5,258.47,3.8693]
[1737831579564,5.86559595,258.48,258.45,0.02907293]
[1737831580164,3.8696,258.46,258.45,0.02907293]
[1737831594489,0.02592425,258.5,258.45,0.02907293]
[1737831594685,0.02592425,258.5,258.47,5.86559595]
[1737831596088,0.02592425,258.5,258.48,3.8692]
[1737831598285,0.02592425,258.5,258.49,3.8691]
[1737831599185,0.02592425,258.5,258.47,9.73499595]
[1737831599585,0.02592425,258.5,258.47,5.86559595]
[1737831600286,5.86559595,258.6,258.53,3.8685]
[1737831600487,5.86559595,258.63,258.52,5.86559595]
[1737831600684,5.86559595,258.66,258.55,5.86559595]
[1737831600886,5.86559595,258.69,258.6,3.8675]
[1737831601085,5.86559595,258.69,258.61,5.86559595]
[1737831601381,0.02951767,258.68,258.64,3.8669]
[1737831601777,0.02951767,258.68,258.62,0.02806717]
[1737831602181,5.86559595,258.75,258.67,5.86559595]
[1737831602386,5.86559595,258.75,258.68,3.8662]
[1737831602783,5.34207284,258.78,258.63,2.6182]
[1737831602784,11.20766879,258.78,258.63,2.6182]